bitfinex/quotes_ETHUSD_20250328
["timestamp","ask_amount","ask_price","bid_price","bid_amount"]
[1743202038030,5.26768,1898.4,1898.1,0.32402317]
[1743202040133,5.26768,1898.4,1898.1,5.59240317]
[1743202040436,5.26768,1898.4,1898.1,7.16979549]
[1743202040845,6.07949,1898.5,1898.1,7.96959549]
[1743202041438,6.07949,1898.5,1898.1,13.23778549]
[1743202041613,5.26739,1898.5,1898.2,0.05267518]
[1743202042135,5.26739,1898.5,1898.3,0.32442792]
[1743202042737,5.26739,1898.5,1898.1,7.64538232]
[1743202042938,5.26739,1898.5,1898.2,1.08896615]
[1743202043815,10.53489,1898.5,1898.2,1.08896615]
[1743202044014,10.53489,1898.5,1898.2,0.32442792]
[1743202044346,10.53489,1898.5,1898.1,6.06799]
[1743202044551,10.53489,1898.5,1898.2,0.32442792]
[1743202044767,5.26739,1898.5,1898.1,6.06799]
[1743202044917,5.26739,1898.5,1898.3,0.32442792]
[1743202045116,5.26739,1898.5,1898.1,6.06799]
[1743202045349,5.26739,1898.5,1898.1,7.692958]
[1743202045559,5.26739,1898.5,1898.2,0.32442792]
[1743202045856,5.26739,1898.5,1898.1,6.06799]
[1743202046150,6.09269,1898.5,1898.1,6.06799]
[1743202046312,6.09269,1898.5,1898.2,0.32442792]
[1743202046507,6.09269,1898.5,1898.1,6.06799]
[1743202046708,6.09269,1898.5,1898.2,0.32442792]
[1743202047014,6.09269,1898.5,1898.1,7.692958]
[1743202047217,6.09269,1898.5,1898.3,0.32442792]
[1743202047416,5.2676,1898.4,1898.1,6.06799]
[1743202048350,5.2674,1898.5,1898.1,6.06799]
[1743202048528,5.2674,1898.5,1898.2,0.606799]
[1743202049251,10.5349,1898.5,1898.1,6.06813]
[1743202049449,5.2674,1898.5,1898.1,6.06813]
[1743202049649,5.26769,1898.4,1898.1,0.7998]
[1743202052057,12.10057,1898.6,1898.2,5.26795]
[1743202052357,6.065,1898.6,1898.3,11.40974067]
[1743202052523,6.065,1898.6,1898.3,12.49804407]
[1743202052725,0.005,1898.6,1898.3,12.49804407]
[1743202053264,0.005,1898.6,1898.4,5.26752]
[1743202053648,0.005,1898.6,1898.4,5.32018973]
[1743202054051,0.005,1898.6,1898.4,5.26752]
[1743202054562,0.005,1898.6,1898.3,7.23034407]
[1743202054929,0.005,1898.6,1898.4,0.05266988]
[1743202055360,0.005,1898.6,1898.3,12.49803407]
[1743202055753,0.005,1898.6,1898.4,0.05266989]
[1743202055953,0.005,1898.6,1898.3,12.49803407]
[1743202056259,0.005,1898.6,1898.4,6.5699833]
[1743202057355,0.005,1898.6,1898.4,6.56998303]
[1743202057561,0.005,1898.6,1898.4,6.51731341]
[1743202058158,0.005,1898.6,1898.4,6.56998303]
[1743202058664,0.005,1898.6,1898.4,6.51731341]
[1743202058959,0.005,1898.6,1898.4,6.56998297]
[1743202059146,0.005,1898.6,1898.4,6.51731341]
[1743202059663,0.005,1898.6,1898.4,6.56993305]
[1743202060368,0.005,1898.6,1898.4,6.51726341]
[1743202060731,0.005,1898.6,1898.4,1.24980341]
[1743202060927,0.005,1898.6,1898.3,6.08954]
[1743202061330,0.005,1898.6,1898.3,11.35729]
[1743202062064,0.005,1898.6,1898.4,0.32377027]
[1743202063667,0.005,1898.6,1898.5,5.26731]
[1743202063836,0.005,1898.6,1898.5,6.04291]
[1743202064032,0.005,1898.6,1898.5,1.65450203]
[1743202064232,0.005,1898.6,1898.5,1.9782723]
[1743202065143,0.005,1898.6,1898.5,7.2455823]
[1743202068276,0.005,1898.6,1898.5,8.07384736]
[1743202068458,0.005,1898.6,1898.5,11.07383738]
[1743202068640,0.005,1898.6,1898.5,11.0211823]
[1743202070271,0.005,1898.6,1898.5,15.9321823]
[1743202075588,0.005,1898.6,1898.5,11.0211823]
[1743202075793,0.005,1898.6,1898.5,15.9311823]
[1743202076782,0.005,1898.6,1898.5,11.0211823]
[1743202076985,0.005,1898.6,1898.5,15.9311823]
[1743202080175,0.005,1898.6,1898.5,15.1555823]
[1743202091508,0.005,1898.6,1898.5,15.9269823]
[1743202092709,0.005,1898.6,1898.5,1.9782723]
[1743202092907,0.7705,1898.6,1898.5,0.32377027]
[1743202093916,6.03753,1898.6,1898.5,0.32377027]
[1743202094209,0.7705,1898.6,1898.5,0.32377027]
[1743202105746,6.03753,1898.6,1898.5,0.32377027]
[1743202107733,0.7705,1898.6,1898.5,0.32377027]
[1743202116137,6.03753,1898.6,1898.5,0.32377027]
[1743202117840,6.03753,1898.6,1898.2,10.1771]
[1743202118040,6.03753,1898.6,1898.5,0.290993]
[1743202118234,11.30477,1898.6,1898.2,10.1771]
[1743202118420,6.03753,1898.6,1898.5,0.290993]
[1743202118740,6.03753,1898.6,1898.2,10.17699]
[1743202119046,6.03753,1898.6,1898.2,11.798669]
[1743202119245,6.03753,1898.6,1898.3,0.290993]
[1743202124251,0.005,1898.6,1898.3,5.61149457]
[1743202124550,0.005,1898.6,1898.3,6.363823]
[1743202128656,5.27206,1898.6,1898.3,6.363823]
[1743202130460,5.27206,1898.6,1898.3,5.558823]
[1743202134264,10.53933,1898.6,1898.3,0.290993]
[1743202134431,6.09916,1898.6,1898.3,0.290993]
[1743202137372,11.36638,1898.6,1898.3,0.290993]
[1743202137865,5.26732,1898.5,1898.3,0.290993]
[1743202141468,0.7784,1898.4,1898.3,0.290993]
[1743202141762,5.26815,1898.2,1898.0,4.909]
[1743202142745,5.2681,1898.3,1898.0,4.909]
[1743202143585,6.04599,1898.4,1898.0,10.17765]
[1743202143895,6.04599,1898.4,1898.0,10.23033168]
[1743202144040,11.31382,1898.4,1898.0,10.23033168]
[1743202144389,12.11046,1898.6,1898.2,5.26792]
[1743202144586,11.33206,1898.6,1898.2,5.32059525]
[1743202144758,11.33206,1898.6,1898.3,0.833]
[1743202144953,6.065,1898.6,1898.3,6.10081]
[1743202146291,6.065,1898.6,1898.3,11.36851]
[1743202146440,6.065,1898.6,1898.3,12.505361]
[1743202146794,6.065,1898.6,1898.3,7.237551]
[1743202147146,6.065,1898.6,1898.3,12.505251]
[1743202147861,6.065,1898.6,1898.3,12.505231]
[1743202149692,0.005,1898.6,1898.3,12.505231]
[1743202149988,0.005,1898.6,1898.4,5.26755]
[1743202150359,0.005,1898.6,1898.4,11.4270581]
[1743202152077,0.005,1898.6,1898.5,0.2681832]
[1743202156271,0.005,1898.6,1898.5,6.36556318]
[1743202156988,0.005,1898.6,1898.5,9.36556318]
[1743202157970,0.005,1898.6,1898.5,9.76020202]
[1743202158172,0.005,1898.6,1898.5,11.87892803]
[1743202158383,0.005,1898.6,1898.5,11.82625805]
[1743202162795,0.005,1898.6,1898.5,10.65421921]
[1743202162978,0.005,1898.6,1898.5,15.56221921]
[1743202164100,0.005,1898.6,1898.5,16.33961921]
[1743202166971,0.005,1898.6,1898.5,16.33861921]
[1743202167303,0.005,1898.6,1898.5,12.56121921]
[1743202203160,0.005,1898.6,1898.5,5.5354932]
[1743202203161,0.8276,1898.6,1898.5,5.5354932]
[1743202203373,0.8276,1898.6,1898.5,5.1741832]
[1743202203568,0.8276,1898.6,1898.5,10.4414932]
[1743202204967,0.8276,1898.6,1898.5,5.5354932]
[1743202205156,0.8276,1898.6,1898.5,10.4414932]
[1743202206062,0.8276,1898.6,1898.5,5.5354932]
[1743202206273,0.8276,1898.6,1898.5,10.4414932]
[1743202207545,0.8276,1898.6,1898.5,5.5354932]
[1743202207768,0.8276,1898.6,1898.5,10.4424932]
[1743202210639,0.8276,1898.6,1898.5,10.4414932]
[1743202214179,0.8276,1898.6,1898.5,5.5354932]
[1743202214342,0.8276,1898.6,1898.5,10.4414932]
[1743202215674,0.8276,1898.6,1898.5,5.5354932]
[1743202215841,0.8276,1898.6,1898.5,10.4414932]
[1743202219278,0.8276,1898.6,1898.5,5.5354932]
[1743202219486,0.8276,1898.6,1898.5,10.4414932]
[1743202221287,0.005,1898.6,1898.5,10.4414932]
[1743202225204,0.8327,1898.6,1898.5,10.4414932]
[1743202228909,0.8327,1898.6,1898.5,5.5354932]
[1743202229213,0.8327,1898.6,1898.5,10.4414932]
[1743202234480,0.8327,1898.6,1898.5,5.5354932]
[1743202234687,0.8327,1898.6,1898.5,10.4414932]
[1743202241033,0.005,1898.6,1898.5,10.4414932]
[1743202241237,0.005,1898.6,1898.5,12.29744252]
[1743202244650,0.005,1898.6,1898.5,15.29744252]
[1743202244843,1e-05,1898.7,1898.6,9.02503]
[1743202245154,1e-05,1898.7,1898.6,9.83873657]
[1743202245304,1e-05,1898.7,1898.6,9.89138223]
[1743202245506,1e-05,1898.7,1898.6,12.04279515]
[1743202245736,1e-05,1898.7,1898.6,11.99014949]
[1743202245899,0.9353558,1899.6,1899.5,5.26454]
[1743202246221,0.9353558,1899.6,1899.5,5.5287494]
[1743202248033,0.1117558,1899.6,1899.5,5.5287494]
[1743202250233,0.1117558,1899.6,1899.5,0.2642094]
[1743202254549,0.1117558,1899.6,1899.5,1.83405334]
[1743202257239,0.1117558,1899.6,1899.5,0.2642094]
[1743202259170,0.1117558,1899.6,1899.5,5.1682094]
[1743202264681,6.1979158,1899.6,1899.5,0.2642094]
[1743202264991,5.26483,1899.4,1899.2,4.903]
[1743202265890,5.26462,1899.5,1899.2,4.903]
[1743202266686,10.52935,1899.5,1899.2,4.903]
[1743202267484,5.26462,1899.5,1899.2,4.903]
[1743202268317,10.52934,1899.5,1899.2,4.903]
[1743202269282,5.26462,1899.5,1899.2,4.903]
[1743202269485,3.07832361,1899.3,1898.7,28.6936]
[1743202269683,5.26648,1898.8,1898.5,1.87374932]
[1743202269901,0.8219,1898.7,1898.5,4.903]
[1743202270199,0.8219,1898.7,1898.5,5.920047]
[1743202270381,0.8219,1898.7,1898.5,4.903]
[1743202271276,6.08866,1898.7,1898.5,4.903]
[1743202271476,0.8219,1898.7,1898.5,4.903]
[1743202272079,0.8219,1898.7,1898.6,0.21454595]
[1743202274202,5.26648,1898.8,1898.6,0.21454595]
[1743202276399,5.26676,1898.7,1898.6,0.21454595]
[1743202276808,6.03896,1898.7,1898.6,0.21454595]
[1743202280810,5.26773,1898.4,1898.1,0.8253]
[1743202281039,6.03993,1898.4,1898.3,4.904]
[1743202282818,6.03993,1898.4,1898.0,33.13258]
[1743202282984,11.30771,1898.4,1898.1,4.904]
[1743202283409,11.30771,1898.4,1898.0,33.13258]
[1743202283614,11.30771,1898.4,1898.1,4.904]
[1743202283785,5.26787,1898.3,1898.1,4.904]
[1743202285111,5.26814,1898.2,1897.8,5.26918]
[1743202285319,5.26814,1898.2,1898.0,4.904]
[1743202285320,5.26842,1898.1,1898.0,4.904]
[1743202285792,5.26824,1898.2,1898.0,4.904]
[1743202287028,5.26824,1898.2,1898.1,0.20337457]
[1743202291431,5.2679,1898.3,1898.1,0.20337457]
[1743202292450,10.53595,1898.3,1898.1,0.20337457]
[1743202292632,5.2679,1898.3,1898.1,0.20337457]
[1743202292800,5.26737,1898.5,1898.1,5.98253203]
[1743202293006,6.07246,1898.6,1898.3,0.8301]
[1743202293343,11.32679,1898.7,1898.3,5.26781]
[1743202293699,11.32679,1898.7,1898.4,0.20337457]
[1743202294638,16.59375,1898.7,1898.4,0.20337457]
[1743202294813,5.2671,1898.6,1898.4,0.20337457]
[1743202295131,6.07266,1898.5,1898.1,0.8301]
[1743202295321,5.26771,1898.4,1898.1,6.09847]
[1743202295495,6.07266,1898.5,1898.1,6.09847]
[1743202298830,5.26772,1898.4,1898.0,10.17244]
[1743202299037,5.26796,1898.3,1898.0,4.904]
[1743202299198,0.8053,1898.2,1897.8,6.09917]
[1743202299402,6.07356,1898.2,1897.9,4.905]
[1743202301763,6.07356,1898.2,1897.8,7.236015]
[1743202301948,6.07356,1898.2,1897.9,5.11128045]
[1743202307768,11.34191,1898.2,1897.9,5.11128045]
[1743202309369,6.07356,1898.2,1897.9,5.11128045]
[1743202318368,11.3419,1898.2,1897.9,5.11128045]
[1743202318564,0.8053,1898.2,1897.9,10.38020045]
[1743202318880,0.8053,1898.2,1897.9,11.9450775]
[1743202320382,6.07345,1898.2,1897.9,11.9450775]
[1743202321681,0.8053,1898.2,1897.9,11.9450775]
[1743202322982,6.07346,1898.2,1897.9,10.38015045]
[1743202326666,0.8101,1898.3,1898.0,10.53715]
[1743202327006,6.06,1898.7,1898.3,5.26776]
[1743202327297,12.13695,1898.7,1898.3,10.17267]
[1743202327465,12.13695,1898.7,1898.4,0.20848544]
[1743202328085,6.8701,1898.7,1898.4,5.47597544]
[1743202331188,6.06,1898.7,1898.4,5.47597544]
[1743202331391,6.06,1898.7,1898.4,12.30829998]
[1743202331591,6.06,1898.7,1898.4,7.04080998]
[1743202331994,0.8101,1898.9,1898.5,5.26717]
[1743202332288,14.326,1899.0,1898.6,11.56363402]
[1743202332449,14.326,1899.0,1898.7,10.53333]
[1743202332450,6.06,1899.0,1898.7,10.53333]
[1743202332646,6.06,1899.0,1898.7,15.43733]
[1743202332890,6.07523,1899.3,1898.8,5.47110744]
[1743202333095,6.07523,1899.3,1898.9,5.26609]
[1743202333257,11.34053,1899.3,1898.9,5.26609]
[1743202333652,11.34053,1899.3,1899.0,0.20487744]
[1743202335089,11.73985132,1899.3,1899.0,0.20487744]
[1743202335298,6.07523,1899.3,1899.0,0.20487744]
[1743202339893,6.07523,1899.3,1899.0,5.47072744]
[1743202340199,0.8101,1899.3,1899.0,5.47072744]
[1743202340358,0.8101,1899.3,1899.0,6.62535118]
[1743202341094,6.07523,1899.3,1899.0,6.62535118]
[1743202344403,6.07523,1899.3,1899.0,1.35950118]
[1743202345278,6.07523,1899.3,1899.0,0.20487744]
[1743202347019,11.34051,1899.3,1899.0,0.20487744]
[1743202348423,5.26542,1899.2,1899.0,0.20487744]
[1743202350800,10.53097,1899.2,1899.0,0.20487744]
[1743202351092,5.26542,1899.2,1899.0,0.20487744]
[1743202351316,10.53099,1899.2,1899.0,0.20487744]
[1743202351497,5.26542,1899.2,1899.0,0.20487744]
[1743202353018,7.5210678,1899.2,1899.0,0.20487744]
[1743202353395,5.26542,1899.2,1899.0,0.20487744]
[1743202355122,7.5210678,1899.2,1899.0,0.20487744]
[1743202361163,5.26542,1899.2,1899.0,0.20487744]
[1743202361722,8.3308678,1899.3,1899.0,0.20487744]
[1743202362750,13.5961378,1899.3,1899.0,0.20487744]
[1743202368371,5.26538,1899.2,1899.0,0.20487744]
[1743202373875,5.26565,1899.1,1899.0,0.20487744]
[1743202375959,7.5212978,1899.1,1899.0,0.20487744]
[1743202376204,5.26565,1899.1,1899.0,0.20487744]
[1743202380104,5.26565,1899.1,1898.8,10.16746]
[1743202380402,5.26565,1899.1,1898.9,0.1870049]
[1743202384491,6.07523,1899.3,1898.9,6.48856139]
[1743202384692,5.26491,1899.4,1899.0,6.09082]
[1743202385001,5.26511,1899.3,1899.0,6.09082]
[1743202385179,5.26511,1899.3,1899.1,0.1870049]
[1743202386086,5.26491,1899.4,1899.1,0.1870049]
[1743202391013,5.26457,1899.5,1899.2,5.26536]
[1743202391182,5.26457,1899.5,1899.2,6.09036]
[1743202391591,7.5202178,1899.5,1899.3,0.18530222]
[1743202392408,5.26457,1899.5,1899.3,0.18530222]
[1743202393389,7.5202178,1899.5,1899.3,0.18530222]
[1743202393586,7.5202178,1899.5,1899.1,5.26552]
[1743202393911,5.26482,1899.4,1899.2,0.18530222]
[1743202394111,7.5202178,1899.5,1899.2,0.18530222]
[1743202395479,5.26457,1899.5,1899.2,0.18530222]
[1743202395680,7.5202178,1899.5,1899.2,0.18530222]
[1743202395892,5.26457,1899.5,1899.2,0.18530222]
[1743202396513,5.01457,1899.5,1899.2,0.18530222]
[1743202397415,7.2702178,1899.5,1899.2,0.18530222]
[1743202398911,5.01457,1899.5,1899.2,0.18530222]
[1743202399413,5.01457,1899.5,1899.2,5.45066222]
[1743202399912,5.01457,1899.5,1899.2,6.26366222]
[1743202400113,7.6316936,1899.6,1899.2,6.26366222]
[1743202401082,7.6316936,1899.6,1899.2,6.26348222]
[1743202401612,7.6316936,1899.6,1899.3,5.26508]
[1743202401613,0.1117558,1899.6,1899.3,5.26508]
[1743202401815,0.1117558,1899.6,1899.5,6.07754]
[1743202402179,0.1117558,1899.6,1899.5,6.26083941]
[1743202410115,0.1117558,1899.6,1899.5,6.31347964]
[1743202410321,0.1117558,1899.6,1899.5,6.26083941]
[1743202410625,0.1117558,1899.6,1899.5,7.41340535]
[1743202410812,0.1117558,1899.6,1899.5,5.08329941]
[1743202411905,5.3760158,1899.6,1899.5,5.08329941]
[1743202412110,6.1486158,1899.6,1899.5,0.18329941]
[1743202412417,6.1486158,1899.6,1899.2,10.16517]
[1743202412628,6.1486158,1899.6,1899.3,5.26506]
[1743202412829,6.1486158,1899.6,1899.4,0.18149741]
[1743202413124,6.1486158,1899.6,1899.3,5.26506]
[1743202413427,6.1486158,1899.6,1899.4,0.18149741]
[1743202413603,6.1486158,1899.6,1899.3,5.26506]
[1743202413793,5.3760158,1899.6,1899.4,0.18149741]
[1743202413992,5.3760158,1899.6,1899.3,5.26506]
[1743202414190,5.3760158,1899.6,1899.4,0.18149741]
[1743202414389,5.3760158,1899.6,1899.3,5.26506]
[1743202414590,0.1117558,1899.6,1899.4,0.18149741]
[1743202414795,0.1117558,1899.6,1899.3,5.26506]
[1743202415131,0.1117558,1899.6,1899.4,0.18149741]
[1743202415431,0.1117558,1899.6,1899.5,0.18149741]
[1743202415732,0.1117558,1899.6,1899.3,6.807953]
[1743202415907,0.1117558,1899.6,1899.4,0.18149741]
[1743202416248,0.1117558,1899.6,1899.5,0.18149741]
[1743202416530,0.1117558,1899.6,1899.3,6.807953]
[1743202416828,0.1117558,1899.6,1899.4,0.18149741]
[1743202417220,0.1117558,1899.6,1899.3,12.072903]
[1743202417694,0.1117558,1899.6,1899.4,0.18149741]
[1743202417895,0.1117558,1899.6,1899.3,12.072903]
[1743202418095,0.1117558,1899.6,1899.4,0.18149741]
[1743202418322,0.1117558,1899.6,1899.3,12.072913]
[1743202418518,0.1117558,1899.6,1899.4,0.18149741]
[1743202418725,0.1117558,1899.6,1899.3,12.072913]
[1743202418916,0.1117558,1899.6,1899.4,0.18149741]
[1743202419128,0.1117558,1899.6,1899.3,12.072913]
[1743202419431,0.1117558,1899.6,1899.4,0.18149741]
[1743202419822,0.1117558,1899.6,1899.5,0.18149741]
[1743202421326,0.1117558,1899.6,1899.5,5.44603741]
[1743202421526,0.1117558,1899.6,1899.5,6.59871815]
[1743202424318,0.1117558,1899.6,1899.5,6.65135812]
[1743202424504,0.1117558,1899.6,1899.5,7.48255812]
[1743202424709,0.1117558,1899.6,1899.5,7.42991815]
[1743202426305,0.1117558,1899.6,1899.5,7.48255589]
[1743202426703,0.1117558,1899.6,1899.5,7.42991815]
[1743202436320,0.1117558,1899.6,1899.5,6.59871815]
[1743202437255,0.1117558,1899.6,1899.5,7.42991815]
[1743202438657,0.1117558,1899.6,1899.5,7.48255566]
[1743202439156,0.1117558,1899.6,1899.5,7.42991815]
[1743202439356,0.1117558,1899.6,1899.5,7.41991815]
[1743202441859,5.8e-06,1899.6,1899.5,7.41991815]
[1743202442058,3.96186267,1900.6,1900.5,0.8237]
[1743202442359,3.96186267,1900.6,1900.5,5.07516076]
[1743202442655,3.96186267,1900.6,1900.5,0.17716076]
[1743202443467,3.96186267,1900.6,1900.5,6.26263076]
[1743202443651,3.96186267,1900.6,1900.5,9.26263076]
[1743202443856,3.0387478,1901.0,1900.5,0.17716076]
[1743202444158,5.2611,1900.8,1900.5,0.17716076]
[1743202444360,5.26073,1900.9,1900.5,5.43890076]
[1743202444843,6.04372,1901.0,1900.6,5.26149]
[1743202445047,5.26078,1900.9,1900.5,0.17716076]
[1743202445429,5.26078,1900.9,1900.5,5.43892076]
[1743202447331,5.26078,1900.9,1900.5,6.99879584]
[1743202447545,5.26078,1900.9,1900.5,5.43892076]
[1743202447767,5.26078,1900.9,1900.5,0.17716076]
[1743202447932,10.52167,1900.9,1900.5,0.17716076]
[1743202448334,10.52156,1900.9,1900.5,0.17716076]
[1743202448871,6.04355,1901.0,1900.5,5.43872076]
[1743202449346,5.26085,1900.9,1900.5,0.17716076]
[1743202449664,5.26096,1900.8,1900.5,0.17716076]
[1743202449870,5.26083,1900.9,1900.5,5.43891076]
[1743202450069,5.26083,1900.9,1900.5,0.17716076]
[1743202450293,5.26083,1900.9,1900.5,5.43884076]
[1743202450935,10.52176,1900.9,1900.5,0.17716076]
[1743202451142,6.313296,1900.8,1900.5,0.17716076]
[1743202451680,0.8197,1900.7,1900.5,0.17716076]
[1743202457674,5.26149,1900.6,1900.5,0.17716076]
[1743202457878,6.06619,1900.6,1900.5,0.17716076]
[1743202458170,5.26193,1900.5,1900.1,38.03071]
[1743202458339,5.26193,1900.5,1900.1,42.435306]
[1743202459672,5.26212,1900.4,1900.1,27.858]
[1743202461882,5.26193,1900.5,1900.1,33.12082]
[1743202462499,10.52389,1900.5,1900.1,33.12082]
[1743202462661,5.26193,1900.5,1900.1,33.12082]
[1743202462865,10.52389,1900.5,1900.1,33.12082]
[1743202463162,5.26193,1900.5,1900.1,33.12082]
[1743202463660,5.26193,1900.5,1900.1,5.26282]
[1743202464183,5.26193,1900.5,1900.1,5.26269]
[1743202464745,5.26193,1900.5,1900.1,10.52547]
[1743202465654,5.26193,1900.5,1900.2,5.2626]
[1743202465854,5.26193,1900.5,1900.1,10.52548]
[1743202466175,5.26193,1900.5,1900.1,5.26269]
[1743202466775,5.26213,1900.4,1900.0,10.92325]
[1743202466982,0.8057,1900.3,1900.1,0.16940843]
[1743202468277,6.06808,1900.3,1900.1,0.16940843]
[1743202469156,6.06808,1900.3,1899.9,15.43152]
[1743202469354,0.8057,1900.3,1900.0,5.43445827]
[1743202469557,6.06748,1900.5,1900.1,6.06818]
[1743202469967,6.06748,1900.5,1900.2,5.43383827]
[1743202470357,6.06748,1900.5,1900.2,0.17130827]
[1743202470859,11.32945,1900.5,1900.2,0.17130827]
[1743202471479,6.06748,1900.5,1900.2,0.17130827]
[1743202473707,0.8057,1900.5,1900.2,5.43378827]
[1743202474904,6.06747,1900.5,1900.2,5.43378827]
[1743202478296,7.51456627,1900.4,1900.2,0.17130827]
[1743202478696,7.51456627,1900.4,1900.0,10.16401]
[1743202478995,12.77685627,1900.4,1900.0,10.16401]
[1743202479189,12.77685627,1900.4,1900.1,0.17130827]
[1743202480004,5.26234,1900.3,1900.1,0.17130827]
[1743202481274,6.01404,1900.3,1900.1,0.17130827]
[1743202481476,6.01404,1900.3,1899.9,10.95488]
[1743202481704,6.01404,1900.3,1900.2,0.17130827]
[1743202481906,6.01404,1900.3,1899.9,10.95488]
[1743202482104,6.01404,1900.3,1900.2,0.17130827]
[1743202482314,6.01404,1900.3,1899.9,10.95488]
[1743202482607,6.01404,1900.3,1900.0,5.26314]
[1743202482810,6.01404,1900.3,1900.1,0.17210844]
[1743202483828,2.77589689,1900.9,1900.8,5.26094]
[1743202484018,2.0601,1902.4,1901.8,0.7802]
[1743202484186,0.62743696,1903.4,1902.0,0.55]
[1743202484187,0.03905733,1903.3,1902.0,0.55]
[1743202484378,0.03905733,1903.3,1902.1,28.02510844]
[1743202484379,2.25236627,1902.9,1902.1,28.02510844]
[1743202484704,0.798,1903.1,1902.1,5.42920844]
[1743202484705,2.25236627,1902.6,1902.1,5.42920844]
[1743202484871,2.25236627,1902.4,1902.1,0.17210844]
[1743202485075,2.25236627,1902.2,1902.1,0.17210844]
[1743202485274,5.25734,1902.1,1901.3,33.058]
[1743202485504,2.25236627,1901.7,1901.3,33.058]
[1743202485706,2.25236627,1901.6,1901.3,5.205]
[1743202485883,3.798,1901.9,1901.4,5.25912]
[1743202486085,3.798,1901.9,1901.6,0.3007836]
[1743202486086,2.25236627,1901.8,1901.6,0.3007836]
[1743202486395,5.783524,1902.0,1901.6,0.3007836]
[1743202486396,0.525734,1902.0,1901.6,0.3007836]
[1743202486599,3.798,1902.2,1901.6,5.5593236]
[1743202487009,0.798,1902.2,1901.6,10.7673236]
[1743202487305,3.798,1902.2,1901.6,10.7673236]
[1743202487509,3.798,1902.2,1901.6,5.25854]
[1743202487730,3.798,1902.2,1901.6,10.46454]
[1743202488025,0.3798,1902.1,1901.6,10.46454]
[1743202488630,6.18718,1902.1,1901.6,5.206]
[1743202488924,5.25782,1902.0,1901.3,5.203]
[1743202489126,3.74765424,1901.9,1901.3,10.46251]
[1743202489292,0.37476542,1901.8,1901.3,10.46251]
[1743202489796,0.37476542,1901.8,1901.4,5.25924]
[1743202490199,5.25782,1902.0,1901.4,5.25924]
[1743202490398,10.51557,1902.0,1901.3,15.72189]
[1743202490703,10.51557,1902.0,1901.3,10.46238]
[1743202491027,10.51557,1902.0,1901.3,15.7218]
[1743202491394,5.25791,1901.9,1901.3,15.7218]
[1743202491600,0.525791,1901.8,1901.3,10.46238]
[1743202491802,0.525791,1901.8,1901.3,15.72176]
[1743202492134,4.67745424,1902.1,1901.7,5.25845]
[1743202492135,0.3798,1902.1,1901.7,5.25845]
[1743202492299,0.3798,1902.1,1901.7,5.25828]
[1743202492631,0.3798,1902.1,1901.7,10.46628]
[1743202493627,0.3798,1902.1,1901.7,5.208]
[1743202493841,5.25694,1902.3,1901.8,5.25799]
[1743202494730,10.51386,1902.3,1901.8,5.25799]
[1743202494933,5.25708,1902.2,1901.7,10.46633]
[1743202495140,5.25708,1902.2,1901.7,15.72463]
[1743202495441,0.525708,1902.1,1901.7,15.72463]
[1743202495942,0.525708,1902.1,1901.8,5.25801]
[1743202496137,5.25692,1902.3,1901.8,5.25801]
[1743202496439,5.25718,1902.2,1901.8,5.25801]
[1743202497144,5.25718,1902.2,1901.9,0.15507054]
[1743202497346,5.25718,1902.2,1901.8,5.25801]
[1743202497648,5.25718,1902.2,1901.9,0.15507054]
[1743202497850,0.525718,1902.1,1901.9,0.15507054]
[1743202498146,0.525718,1902.1,1902.0,0.15556971]
[1743202498303,6.05433,1902.5,1902.0,5.25737]
[1743202498509,5.25652,1902.4,1902.1,0.15556971]
[1743202498710,5.2568,1902.3,1901.9,5.25778]
[1743202499016,5.2568,1902.3,1902.0,0.15556971]
[1743202499210,6.308132,1902.3,1902.0,0.15556971]
[1743202500447,1.051332,1902.3,1902.0,5.41317971]
[1743202500646,5.25652,1902.4,1902.0,5.41317971]
[1743202501550,5.25652,1902.4,1902.0,5.41301971]
[1743202501859,1.21733158,1902.8,1902.1,6.0033]
[1743202502011,0.39143158,1902.8,1902.6,5.25581]
[1743202502217,0.39143158,1902.8,1902.7,0.15387246]
[1743202502419,5.25497,1903.0,1902.6,5.195]
[1743202502734,5.25497,1903.0,1902.7,0.15372273]
[1743202502735,3.74765424,1902.8,1902.7,0.15372273]
[1743202503119,0.525497,1902.9,1902.6,10.45081]
[1743202503448,3.74765424,1903.0,1902.7,0.15372273]
[1743202503649,3.74765424,1903.0,1902.7,5.40938273]
[1743202503863,15.10074157,1903.3,1902.7,5.25566]
[1743202504067,0.03905733,1903.3,1902.8,0.15372273]
[1743202504418,5.25458,1903.1,1902.8,0.15372273]
[1743202504754,5.25458,1903.1,1902.9,0.15372273]
[1743202504755,9.00270424,1903.0,1902.9,0.15372273]
[1743202505057,9.82860424,1903.0,1902.5,10.46021]
[1743202505355,3.0,1903.1,1902.5,5.204]
[1743202505520,3.0,1903.1,1902.7,5.25546]
[1743202505922,3.0,1903.1,1902.8,0.15372273]
[1743202506455,6.59143407,1903.3,1902.8,0.15372273]
[1743202506456,11.37337733,1903.3,1902.9,5.213]
[1743202506617,6.11911733,1903.3,1902.8,0.15372273]
[1743202506952,0.03905733,1903.3,1902.9,5.25513]
[1743202507122,0.03905733,1903.3,1903.0,0.14469278]
[1743202507322,0.03905733,1903.3,1902.8,5.25541]
[1743202507524,0.03905733,1903.3,1902.9,0.14464292]
[1743202507724,0.03905733,1903.3,1903.2,5.2543]
[1743202507945,0.03905733,1903.3,1903.2,10.5748372]
[1743202508153,0.03905733,1903.3,1903.2,10.66694292]
[1743202508454,0.03905733,1903.3,1903.2,11.48824292]
[1743202508640,0.03905733,1903.3,1903.2,13.16251921]
[1743202508844,0.03905733,1903.3,1903.2,16.16251921]
[1743202509159,0.05,1903.9,1903.2,16.16251921]
[1743202509160,0.05,1903.9,1903.8,0.8213]
[1743202509358,0.05,1903.9,1903.8,10.6739997]
[1743202509561,0.05,1903.9,1903.8,0.1423497]
[1743202509857,0.05,1903.9,1903.8,5.3949997]
[1743202510061,0.05,1903.9,1903.8,0.1423497]